[Event "Fredericia WIM 2022"]
[Site "Fredericia"]
[Date "2022.05.29"]
[Round "10.3"]
[White "Lach, Aleksandra"]
[Black "Durrfeld, Sofie Bech"]
[Result "1-0"]
[ECO "B23"]
[WhiteElo "2202"]
[BlackElo "1773"]
[Annotator "TA"]
[PlyCount "63"]
[EventDate "2022.05.25"]
[EventType "tourn"]
[EventCountry "DEN"]
[SourceTitle "playchess.com"]
[Source "ChessBase"]
[SourceQuality "1"]
[TimeControl "40/5400+30:1800+30"]

{[%evp 23,63,8,10,-31,-21,-38,49,49,62,75,80,64,129,84,100,68,124,50,64,21,76,60,121,127,277,242,528,503,755,393,402,412,406,416,411,410,406,393,963,941,1039,753]} 1. e4 {[%emt 0:00:07]} c5 {[%emt 0:00:06]} 2. Nc3 {[%emt 0:00:40]} d6 {[%emt 0:00:10]} 3. Nge2 {[%emt 0:05:42]} g6 {[%emt 0:02:43]} 4. g3 {[%emt 0:05:31]} Bg7 {[%emt 0:00:26]} 5. Bg2 {[%emt 0:00:10]} Nc6 {[%emt 0:02:19]} 6. d3 {[%emt 0:05:52]} Nf6 {[%emt 0:01:50]} 7. h3 {[%emt 0:01:51]} Bd7 {[%emt 0:01:00]} 8. Be3 {[%emt 0:05:07]} O-O {[%emt 0:03:01]} 9. Qd2 {[%emt 0:04:42]} Rb8 {[%emt 0:02:52]} 10. Bh6 {[%emt 0:09:08]} b5 {[%emt 0:00:31][%cal Bb7b5,Bb5b4][%mdl 32]} 11. Bxg7 {[%emt 0:08:57]} Kxg7 {[%emt 0:00:07]} 12. O-O {[%emt 0:03:27]} e6 {[%emt 0:07:41] [#]} 13. g4 $146 {[%emt 0:12:43] B26: Closed Sicilian: 3 g3, lines with early Be3.} ({Predecessor:} 13. f4 b4 14. Nd1 d5 15. e5 Ne8 16. Ne3 f6 17. Ng4 h5 18. exf6+ Nxf6 19. Ne5 Qc7 20. Nxc6 Bxc6 21. d4 Bb5 22. Rfe1 Rfe8 23. Kh2 Bxe2 24. Rxe2 Re7 25. Rae1 Rbe8 {½-½ (25) Bagh,K (1947)-Herting,M (1746) Verden 2019}) 13... b4 {[%emt 0:05:16]} 14. Nd1 {[%emt 0:02:01]} Qc7 {[%emt 0:11:57]} ({Better is} 14... h5 $15) 15. Ne3 $14 {[%emt 0:06:40] White is slightly better.} Rfd8 {[%emt 0:02:12][%cal Od6d5]} 16. Ng3 {[%emt 0:02:48]} h6 {[%emt 0:06:08]} 17. f4 {[%emt 0:03:46]} Bc8 {[%emt 0:03:28]} (17... a5 $14) 18. Qf2 {[%emt 0:02:23][%cal Oe4e5]} ({Don't do} 18. g5 hxg5 19. fxg5 Nh7) 18... Bb7 {[%emt 0:08:15]} 19. h4 {[%emt 0:02:35][%cal Bh3h4,Bh4g5][%mdl 32]} Rh8 {[%emt 0:02:54]} ({Black should try} 19... Rf8 $14) 20. f5 {[%emt 0:03:28]} (20. e5 $16 Ne8 21. Bxc6 Qxc6 22. a3) 20... Rbf8 {[%emt 0:01:56]} 21. g5 {[%emt 0:03:06]} hxg5 {[%emt 0:00:29]} (21... Nd7 $11) 22. hxg5 $16 {[%emt 0:00:17]} Nh5 {[%emt 0:03:52]} ({Black should play} 22... Nd7 $14) 23. Nxh5+ {[%emt 0:01:07]} Rxh5 {[%emt 0:00:26] A mistake that costs the game.} (23... gxh5 $16 24. Bh3 Ne5) 24. fxe6 {[%emt 0:00:37] Really sharp!} d5 $2 {[%emt 0:02:41] [#]} (24... Ne5 25. c3 Re8) 25. Qf6+ $18 {[%emt 0:03:11]} Kh7 {[%emt 0:02:28]} (25... Kg8 $142) 26. Qxf7+ {[%emt 0:01:00]} Rxf7 {[%emt 0:00:12]} 27. Rxf7+ {[%emt 0:00:02]} Qxf7 {[%emt 0:00:11]} 28. exf7 {[%emt 0:00:02]} Kg7 {[%emt 0:00:25]} 29. Rf1 {[%emt 0:00:42]} Kf8 {[%emt 0:00:43]} 30. Nxd5 {[%emt 0:02:20]} ({Less strong is} 30. exd5 Ne5 31. Rf4 Rxg5 $18) 30... Ne5 $2 {[%emt 0:01:22]} (30... Bc8 31. Rf6 Ne5) 31. Nf4 {[%emt 0:00:38] [#] Threatening mate with Ne6+.} Rh8 {[%emt 0:00:23]} 32. Ne6+ {[%emt 0:00:11] Weighted Error Value: White=0.39/Black=0.64} 1-0